[Event "Al Mahmud Memorial Probashi Chess-ch 202"]
[Site "Dhaka"]
[Date "2022.02.06"]
[Round "2.3"]
[White "Nasim Hossain, Bhuiyan"]
[Black "Mehdi Hasan Parag"]
[Result "0-1"]
[ECO "A08"]
[WhiteElo "1859"]
[BlackElo "2258"]
[Annotator "ChessBase"]
[PlyCount "76"]
[EventDate "2022.02.06"]
[EventCountry "BAN"]
[SourceTitle "playchess.com"]
[Source "ChessBase"]
[SourceQuality "1"]
[TimeControl "5400+30"]

1. Nf3 {[%emt 0:03:22]} c5 {[%emt 0:00:29]} 2. d3 {[%emt 0:00:07]} Nc6 {[%emt 0:00:24]} 3. g3 {[%emt 0:00:06]} d5 {[%emt 0:01:41]} 4. Bg2 {[%emt 0:00:08]} Bg4 {[%emt 0:00:09]} 5. O-O {[%emt 0:00:25]} Nf6 {[%emt 0:00:36]} 6. Nbd2 {[%emt 0:00:06]} Qc8 {[%emt 0:00:30]} 7. b3 {[%emt 0:00:07]} Bh3 {[%emt 0:00:14]} 8. Bb2 {[%emt 0:00:09]} Bxg2 {[%emt 0:00:21]} 9. Kxg2 {[%emt 0:00:02]} e6 {[%emt 0:01:23]} 10. e4 {[%emt 0:00:19]} d4 {[%emt 0:01:42]} 11. c3 {[%emt 0:00:03]} e5 {[%emt 0:00:44]} 12. cxd4 {[%emt 0:02:04]} cxd4 {[%emt 0:00:23]} 13. Rc1 {[%emt 0:01:35]} Nd7 {[%emt 0:01:57]} 14. Nc4 {[%emt 0:00:43]} Be7 {[%emt 0:00:52]} 15. Ncxe5 {[%emt 0:02:20]} Ndxe5 {[%emt 0:02:46]} 16. Nxe5 {[%emt 0:00:11]} O-O {[%emt 0:01:37]} 17. Nxc6 {[%emt 0:01:02]} bxc6 {[%emt 0:00:01]} 18. Bxd4 {[%emt 0:02:16]} Rd8 {[%emt 0:02:27]} 19. Ba1 {[%emt 0:03:00]} Rd6 {[%emt 0:01:21]} 20. d4 {[%emt 0:00:32]} Rh6 {[%emt 0:00:28]} 21. g4 {[%emt 0:00:48]} Qe6 {[%emt 0:02:14]} 22. f3 {[%emt 0:00:51]} Bg5 {[%emt 0:00:31]} 23. Rc5 {[%emt 0:01:03]} Bf4 {[%emt 0:00:38]} 24. h3 {[%emt 0:01:01]} g5 {[%emt 0:04:18]} 25. Rh1 {[%emt 0:02:16]} Rd8 {[%emt 0:00:42]} 26. d5 {[%emt 0:01:06]} cxd5 {[%emt 0:09:37]} 27. Qd4 {[%emt 0:03:18]} Kf8 {[%emt 0:01:29]} 28. Rd1 {[%emt 0:04:36]} Qa6 {[%emt 0:02:42]} 29. a4 {[%emt 0:03:38]} Qe2+ {[%emt 0:01:17]} 30. Qf2 {[%emt 0:08:58]} Qxd1 {[%emt 0:00:47]} 31. Qb2 {[%emt 0:00:40]} Qd2+ {[%emt 0:01:21]} 32. Qxd2 {[%emt 0:00:30]} Bxd2 {[%emt 0:00:03]} 33. exd5 {[%emt 0:00:19]} Rhd6 {[%emt 0:00:33]} 34. Rc7 {[%emt 0:00:41]} Bf4 {[%emt 0:01:07]} 35. Rxa7 {[%emt 0:01:15]} Rxd5 {[%emt 0:00:08]} 36. Bc3 {[%emt 0:00:05]} Rc8 {[%emt 0:00:42]} 37. Bb4+ {[%emt 0:00:23]} Kg8 {[%emt 0:00:09]} 38. Rb7 {[%emt 0:00:26]} Rc2+ {[%emt 0:00:14]} 0-1

[Event "Al Mahmud Memorial Probashi Chess-ch 202"]
[Site "Dhaka"]
[Date "2022.02.06"]
[Round "2.4"]
[White "Abu Sufian, Shakil"]
[Black "Islam, M.M. Zahirul"]
[Result "1-0"]
[ECO "C10"]
[WhiteElo "2232"]
[BlackElo "1853"]
[Annotator "ChessBase"]
[PlyCount "105"]
[EventDate "2022.02.06"]
[EventCountry "BAN"]
[SourceTitle "playchess.com"]
[Source "ChessBase"]
[SourceQuality "1"]
[TimeControl "5400+30"]

1. e4 {[%emt 0:00:05]} e6 {[%emt 0:00:11]} 2. d4 {[%emt 0:00:06]} d5 {[%emt 0:00:08]} 3. Nc3 {[%emt 0:00:12]} dxe4 {[%emt 0:00:17]} 4. Nxe4 {[%emt 0:00:02]} Nd7 {[%emt 0:00:18]} 5. c3 {[%emt 0:04:50]} Ngf6 {[%emt 0:00:31]} 6. Bd3 {[%emt 0:00:19]} Be7 {[%emt 0:00:39]} 7. Nf3 {[%emt 0:00:07]} Nxe4 {[%emt 0:00:40]} 8. Bxe4 {[%emt 0:00:02]} Nf6 {[%emt 0:00:47]} 9. Bc2 {[%emt 0:00:19]} O-O {[%emt 0:00:56]} 10. O-O {[%emt 0:00:48]} b6 {[%emt 0:00:38]} 11. Qd3 {[%emt 0:08:53]} Bb7 {[%emt 0:02:47]} 12. Re1 {[%emt 0:00:24]} c5 {[%emt 0:05:02]} 13. Bg5 {[%emt 0:02:17]} g6 {[%emt 0:02:47]} 14. Bh6 {[%emt 0:13:05]} Re8 {[%emt 0:07:20]} 15. Ba4 {[%emt 0:00:35]} Nd7 {[%emt 0:02:19]} 16. Qb5 {[%emt 0:13:25]} Bxf3 {[%emt 0:03:21]} 17. gxf3 {[%emt 0:04:08]} Nf6 {[%emt 0:03:12]} 18. Qe2 {[%emt 0:01:25]} Nd7 {[%emt 0:00:12]} 19. dxc5 {[%emt 0:01:23]} Bg5 {[%emt 0:02:04]} 20. Bxd7 {[%emt 0:04:49]} Bxh6 {[%emt 0:00:29]} 21. Bxe8 {[%emt 0:00:03]} Qg5+ {[%emt 0:00:29]} 22. Kh1 {[%emt 0:00:07]} Rxe8 {[%emt 0:00:36]} 23. cxb6 {[%emt 0:08:48]} axb6 {[%emt 0:01:36]} 24. Qe4 {[%emt 0:02:18]} Rd8 {[%emt 0:01:55]} 25. Rad1 {[%emt 0:00:29]} Rd2 {[%emt 0:00:55]} 26. Rxd2 {[%emt 0:04:50]} Qxd2 {[%emt 0:00:06]} 27. Re2 {[%emt 0:02:43]} Qc1+ {[%emt 0:01:53]} 28. Kg2 {[%emt 0:00:05]} Qg5+ {[%emt 0:00:14]} 29. Qg4 {[%emt 0:00:12]} Qd5 {[%emt 0:01:04]} 30. c4 {[%emt 0:00:55]} Qd6 {[%emt 0:01:50]} 31. Qe4 {[%emt 0:01:44]} Bf4 {[%emt 0:01:27]} 32. h3 {[%emt 0:01:46]} e5 {[%emt 0:01:09]} 33. a3 {[%emt 0:02:34]} Qf6 {[%emt 0:00:50]} 34. Rc2 {[%emt 0:01:38]} Qg5+ {[%emt 0:01:34]} 35. Kf1 {[%emt 0:00:32]} Qh4 {[%emt 0:00:10]} 36. b4 {[%emt 0:00:42]} Qxh3+ {[%emt 0:00:24]} 37. Ke2 {[%emt 0:00:01]} Qc8 {[%emt 0:02:00]} 38. c5 {[%emt 0:00:31]} bxc5 {[%emt 0:02:05]} 39. bxc5 {[%emt 0:01:11]} h5 {[%emt 0:08:04]} 40. c6 {[%emt 0:00:27]} h4 {[%emt 0:00:37]} 41. c7 {[%emt 0:02:44]} Kg7 {[%emt 0:01:38]} 42. Qc6 {[%emt 0:14:15]} h3 {[%emt 0:02:18]} 43. Rb2 {[%emt 0:00:09]} h2 {[%emt 0:03:28]} 44. Rb8 {[%emt 0:00:45]} Qxc7 {[%emt 0:02:49]} 45. Qxc7 {[%emt 0:00:04]} h1=Q {[%emt 0:00:43]} 46. Rb7 {[%emt 0:01:42]} Qa1 {[%emt 0:01:18]} 47. Qxf7+ {[%emt 0:00:07]} Kh6 {[%emt 0:00:04]} 48. Qf8+ {[%emt 0:00:33]} Kg5 {[%emt 0:01:05]} 49. Qd8+ {[%emt 0:00:25]} Kh5 {[%emt 0:01:52]} 50. Rh7+ {[%emt 0:00:27]} Bh6 {[%emt 0:00:08]} 51. Qd7 {[%emt 0:03:22]} Qa2+ {[%emt 0:04:25]} 52. Kf1 {[%emt 0:00:17]} g5 {[%emt 0:00:21]} 53. Qh3+ {[%emt 0:00:15]} 1-0

[Event "Al Mahmud Memorial Probashi Chess-ch 202"]
[Site "Dhaka"]
[Date "2022.02.06"]
[Round "2.5"]
[White "Marzouq, Chowdhury"]
[Black "Md., Sharif Hossain"]
[Result "0-1"]
[ECO "D45"]
[WhiteElo "1855"]
[BlackElo "2211"]
[Annotator "ChessBase"]
[PlyCount "58"]
[EventDate "2022.02.06"]
[EventCountry "BAN"]
[SourceTitle "playchess.com"]
[Source "ChessBase"]
[SourceQuality "1"]
[TimeControl "5400+30"]

1. d4 {[%emt 0:00:03]} d5 {[%emt 0:00:16]} 2. c4 {[%emt 0:00:05]} c6 {[%emt 0:00:08]} 3. Nc3 {[%emt 0:00:04]} Nf6 {[%emt 0:00:03]} 4. e3 {[%emt 0:00:06]} e6 {[%emt 0:00:05]} 5. Nf3 {[%emt 0:00:04]} Nbd7 {[%emt 0:00:04]} 6. Be2 {[%emt 0:00:11]} Bd6 {[%emt 0:00:09]} 7. O-O {[%emt 0:00:08]} O-O {[%emt 0:00:35]} 8. b3 {[%emt 0:00:05]} b6 {[%emt 0:00:53]} 9. Bb2 {[%emt 0:00:04]} Re8 {[%emt 0:00:39]} 10. Bd3 {[%emt 0:00:48]} e5 {[%emt 0:01:40]} 11. dxe5 {[%emt 0:00:59]} Nxe5 {[%emt 0:00:08]} 12. h3 {[%emt 0:03:03]} Nxd3 {[%emt 0:01:02]} 13. Qxd3 {[%emt 0:00:02]} Ba6 {[%emt 0:02:21]} 14. Rfd1 {[%emt 0:00:49]} Qe7 {[%emt 0:01:35]} 15. Nd4 {[%emt 0:06:38]} Bc7 {[%emt 0:07:21]} 16. Qf5 {[%emt 0:08:03]} Bc8 {[%emt 0:04:16]} 17. Qf3 {[%emt 0:00:26]} Qd6 {[%emt 0:00:35]} 18. cxd5 {[%emt 0:03:29]} Qh2+ {[%emt 0:04:43]} 19. Kf1 {[%emt 0:00:02]} Ba6+ {[%emt 0:00:32]} 20. Ke1 {[%emt 0:00:09]} Nxd5 {[%emt 1:13:25]} 21. Nxd5 {[%emt 0:01:06]} cxd5 {[%emt 0:00:00]} 22. Nf5 {[%emt 0:03:20]} Be5 {[%emt 0:00:00]} 23. Bxe5 {[%emt 0:00:50]} Qxe5 {[%emt 0:00:00]} 24. Rac1 {[%emt 0:07:03]} Rad8 {[%emt 0:00:00]} 25. Rd4 {[%emt 0:12:21]} Bc8 {[%emt 0:00:00]} 26. Rf4 {[%emt 0:05:35]} d4 {[%emt 0:00:00]} 27. Nxd4 {[%emt 0:23:36]} g5 {[%emt 0:00:00]} 28. Rxf7 {[%emt 0:01:07]} Qxd4 {[%emt 0:00:00]} 29. Rcc7 {[%emt 0:01:13]} Qa1+ {[%emt 0:00:00]} 0-1

[Event "Al Mahmud Memorial Probashi Chess-ch 202"]
[Site "Dhaka"]
[Date "2022.02.06"]
[Round "2.6"]
[White "Manon, Reja Neer"]
[Black "Jodunath, Biswas"]
[Result "1/2-1/2"]
[ECO "A41"]
[WhiteElo "2209"]
[BlackElo "1845"]
[Annotator "ChessBase"]
[PlyCount "104"]
[EventDate "2022.02.06"]
[EventCountry "BAN"]
[SourceTitle "playchess.com"]
[Source "ChessBase"]
[SourceQuality "1"]
[TimeControl "5400+30"]

1. e4 {[%emt 0:00:02]} d6 {[%emt 0:14:51]} 2. d4 {[%emt 0:00:19]} Nf6 {[%emt 0:00:28]} 3. Bd3 {[%emt 0:00:43]} c6 {[%emt 0:02:40]} 4. Nf3 {[%emt 0:01:04]} Bg4 {[%emt 0:01:34]} 5. Be3 {[%emt 0:02:15]} Nbd7 {[%emt 0:00:56]} 6. Nbd2 {[%emt 0:01:03]} e5 {[%emt 0:03:09]} 7. h3 {[%emt 0:01:12]} exd4 {[%emt 0:11:00]} 8. Bxd4 {[%emt 0:01:27]} Be6 {[%emt 0:05:52]} 9. Qe2 {[%emt 0:02:26]} Be7 {[%emt 0:07:03]} 10. O-O {[%emt 0:02:28]} O-O {[%emt 0:05:09]} 11. Rad1 {[%emt 0:01:13]} Re8 {[%emt 0:01:37]} 12. Ng5 {[%emt 0:02:38]} h6 {[%emt 0:02:55]} 13. Nxe6 {[%emt 0:02:08]} fxe6 {[%emt 0:00:06]} 14. e5 {[%emt 0:00:53]} dxe5 {[%emt 0:05:38]} 15. Bxe5 {[%emt 0:00:39]} Nxe5 {[%emt 0:00:15]} 16. Qxe5 {[%emt 0:00:05]} Qd5 {[%emt 0:13:21]} 17. Qe2 {[%emt 0:01:32]} Bc5 {[%emt 0:06:50]} 18. Nb3 {[%emt 0:06:22]} Qg5 {[%emt 0:01:15]} 19. Bc4 {[%emt 0:02:27]} Bb6 {[%emt 0:00:37]} 20. Nd4 {[%emt 0:04:49]} Nd5 {[%emt 0:05:52]} 21. Nxe6 {[%emt 0:10:42]} Qf6 {[%emt 0:01:04]} 22. Rxd5 {[%emt 0:02:45]} cxd5 {[%emt 0:00:20]} 23. Bxd5 {[%emt 0:00:02]} Kh8 {[%emt 0:00:37]} 24. c4 {[%emt 0:01:10]} Re7 {[%emt 0:02:52]} 25. Re1 {[%emt 0:21:46]} Ba5 {[%emt 0:00:32]} 26. Rd1 {[%emt 0:02:23]} Rae8 {[%emt 0:01:54]} 27. Qe4 {[%emt 0:00:37]} Rxe6 {[%emt 0:02:25]} 28. Bxe6 {[%emt 0:00:09]} Qxe6 {[%emt 0:00:10]} 29. Qxb7 {[%emt 0:00:24]} Bb6 {[%emt 0:00:55]} 30. Qd5 {[%emt 0:03:45]} Qe7 {[%emt 0:00:44]} 31. Qd3 {[%emt 0:03:54]} Qf6 {[%emt 0:00:53]} 32. Qc2 {[%emt 0:01:58]} Re5 {[%emt 0:01:04]} 33. b4 {[%emt 0:01:58]} Qe7 {[%emt 0:01:09]} 34. c5 {[%emt 0:03:27]} Re1+ {[%emt 0:00:03]} 35. Kh2 {[%emt 0:00:52]} Bc7+ {[%emt 0:00:16]} 36. g3 {[%emt 0:00:26]} Qe2 {[%emt 0:01:27]} 37. Qxe2 {[%emt 0:02:23]} Rxe2 {[%emt 0:00:08]} 38. Rd7 {[%emt 0:00:06]} Rxf2+ {[%emt 0:00:07]} 39. Kg1 {[%emt 0:00:03]} Bxg3 {[%emt 0:00:28]} 40. Rxa7 {[%emt 0:00:04]} Rc2 {[%emt 0:00:23]} 41. a3 {[%emt 0:03:05]} Kh7 {[%emt 0:00:13]} 42. Rb7 {[%emt 0:00:53]} Kg6 {[%emt 0:00:13]} 43. a4 {[%emt 0:00:24]} Kf6 {[%emt 0:00:24]} 44. a5 {[%emt 0:00:25]} g5 {[%emt 0:00:29]} 45. a6 {[%emt 0:00:19]} Kf5 {[%emt 0:00:25]} 46. a7 {[%emt 0:02:36]} Ra2 {[%emt 0:00:07]} 47. c6 {[%emt 0:04:15]} Ke4 {[%emt 0:03:30]} 48. Rf7 {[%emt 0:00:40]} Bf4 {[%emt 0:00:00]} 49. c7 {[%emt 0:01:57]} Kf3 {[%emt 0:00:05]} 50. Rxf4+ {[%emt 0:00:36]} gxf4 {[%emt 0:00:24]} 51. c8=Q {[%emt 0:06:11]} Ra1+ {[%emt 0:00:13]} 52. Kh2 {[%emt 0:00:00]} Ra2+ {[%emt 0:00:21]} 1/2-1/2

[Event "Al Mahmud Memorial Probashi Chess-ch 202"]
[Site "Dhaka"]
[Date "2022.02.06"]
[Round "2.7"]
[White "Jannatul, Ferdous"]
[Black "Subrota, Biswas"]
[Result "0-1"]
[ECO "B15"]
[WhiteElo "1852"]
[BlackElo "2202"]
[Annotator "ChessBase"]
[PlyCount "106"]
[EventDate "2022.02.06"]
[EventCountry "BAN"]
[SourceTitle "playchess.com"]
[Source "ChessBase"]
[SourceQuality "1"]
[TimeControl "5400+30"]

1. e4 {[%emt 0:00:07]} c6 {[%emt 0:06:32]} 2. d4 {[%emt 0:00:16]} d5 {[%emt 0:00:02]} 3. Nc3 {[%emt 0:00:14]} dxe4 {[%emt 0:01:08]} 4. Nxe4 {[%emt 0:00:03]} Nf6 {[%emt 0:00:16]} 5. Nxf6+ {[%emt 0:00:05]} exf6 {[%emt 0:00:02]} 6. c3 {[%emt 0:00:47]} Bd6 {[%emt 0:00:02]} 7. Bd3 {[%emt 0:00:12]} O-O {[%emt 0:00:03]} 8. Qc2 {[%emt 0:00:09]} Re8+ {[%emt 0:00:01]} 9. Ne2 {[%emt 0:00:07]} h5 {[%emt 0:00:06]} 10. Be3 {[%emt 0:00:33]} Nd7 {[%emt 0:00:10]} 11. O-O-O {[%emt 0:00:25]} Nf8 {[%emt 0:00:31]} 12. Kb1 {[%emt 0:00:15]} Be6 {[%emt 0:00:35]} 13. c4 {[%emt 0:02:01]} Rc8 {[%emt 0:00:44]} 14. h3 {[%emt 0:00:28]} b5 {[%emt 0:06:49]} 15. c5 {[%emt 0:01:46]} Bc7 {[%emt 0:04:09]} 16. Be4 {[%emt 0:13:29]} Qd7 {[%emt 0:32:35]} 17. Ka1 {[%emt 0:24:56]} f5 {[%emt 0:06:39]} 18. Bf3 {[%emt 0:01:08]} Nh7 {[%emt 0:22:50]} 19. d5 {[%emt 0:21:30]} cxd5 {[%emt 0:02:05]} 20. Nc3 {[%emt 0:03:32]} Nf6 {[%emt 0:00:39]} 21. Bg5 {[%emt 0:01:30]} Be5 {[%emt 0:02:55]} 22. Bxf6 {[%emt 0:00:48]} Bxf6 {[%emt 0:00:04]} 23. Nxd5 {[%emt 0:01:01]} Bxd5 {[%emt 0:00:05]} 24. Rxd5 {[%emt 0:01:04]} Qe7 {[%emt 0:00:45]} 25. Qxf5 {[%emt 0:02:11]} a5 {[%emt 0:01:52]} 26. Kb1 {[%emt 0:03:41]} Rc7 {[%emt 0:03:38]} 27. c6 {[%emt 0:08:36]} Rxc6 {[%emt 0:00:31]} 28. Re5 {[%emt 0:04:45]} Qxe5 {[%emt 0:00:43]} 29. Qxe5 {[%emt 0:00:03]} Rxe5 {[%emt 0:00:03]} 30. Bxc6 {[%emt 0:00:18]} Re2 {[%emt 0:00:02]} 31. b3 {[%emt 0:02:04]} Rb2+ {[%emt 0:04:39]} 32. Kc1 {[%emt 0:00:04]} Rxa2 {[%emt 0:00:19]} 33. g4 {[%emt 0:01:49]} a4 {[%emt 0:01:33]} 34. bxa4 {[%emt 0:03:19]} bxa4 {[%emt 0:00:02]} 35. Re1 {[%emt 0:01:14]} Ra1+ {[%emt 0:01:08]} 36. Kd2 {[%emt 0:00:41]} Bc3+ {[%emt 0:00:02]} 37. Kxc3 {[%emt 0:00:16]} Rxe1 {[%emt 0:00:03]} 38. Bxa4 {[%emt 0:00:13]} hxg4 {[%emt 0:00:03]} 39. hxg4 {[%emt 0:00:22]} Re2 {[%emt 0:00:06]} 40. Kd3 {[%emt 0:01:25]} Rxf2 {[%emt 0:00:57]} 41. Ke3 {[%emt 0:00:03]} Rf6 {[%emt 0:00:49]} 42. Bb5 {[%emt 0:00:57]} g5 {[%emt 0:00:07]} 43. Bd3 {[%emt 0:00:22]} Rf4 {[%emt 0:00:03]} 44. Be2 {[%emt 0:01:24]} Kg7 {[%emt 0:00:23]} 45. Bd1 {[%emt 0:00:09]} Kf6 {[%emt 0:00:02]} 46. Be2 {[%emt 0:00:18]} Ke6 {[%emt 0:00:09]} 47. Bd1 {[%emt 0:00:08]} Ke5 {[%emt 0:00:02]} 48. Bb3 {[%emt 0:01:09]} Rxg4 {[%emt 0:01:09]} 49. Bxf7 {[%emt 0:00:10]} Re4+ {[%emt 0:00:03]} 50. Kd3 {[%emt 0:00:30]} g4 {[%emt 0:00:04]} 51. Bg6 {[%emt 0:00:29]} Rd4+ {[%emt 0:01:51]} 52. Ke3 {[%emt 0:00:06]} g3 {[%emt 0:00:03]} 53. Be8 {[%emt 0:01:45]} Rg4 {[%emt 0:05:28]} 0-1

[Event "Al Mahmud Memorial Probashi Chess-ch 202"]
[Site "Dhaka"]
[Date "2022.02.06"]
[Round "2.8"]
[White "Md, Asifur Rahman"]
[Black "Ahmed, Sheikh Nasir"]
[Result "1/2-1/2"]
[ECO "B85"]
[WhiteElo "1845"]
[BlackElo "2168"]
[Annotator "ChessBase"]
[PlyCount "86"]
[EventDate "2022.02.06"]
[EventCountry "BAN"]
[SourceTitle "playchess.com"]
[Source "ChessBase"]
[SourceQuality "1"]
[TimeControl "5400+30"]

1. e4 {[%emt 0:06:27]} c5 {[%emt 0:00:09]} 2. Nf3 {[%emt 0:00:05]} e6 {[%emt 0:00:07]} 3. d4 {[%emt 0:00:04]} cxd4 {[%emt 0:00:07]} 4. Nxd4 {[%emt 0:00:06]} Nc6 {[%emt 0:00:12]} 5. Nc3 {[%emt 0:00:11]} Qc7 {[%emt 0:00:09]} 6. Be3 {[%emt 0:00:37]} a6 {[%emt 0:00:09]} 7. Be2 {[%emt 0:00:34]} Nf6 {[%emt 0:00:24]} 8. O-O {[%emt 0:00:08]} Be7 {[%emt 0:00:33]} 9. f4 {[%emt 0:00:01]} d6 {[%emt 0:00:04]} 10. Qe1 {[%emt 0:03:29]} O-O {[%emt 0:00:28]} 11. Qg3 {[%emt 0:00:29]} Bd7 {[%emt 0:04:50]} 12. Kh1 {[%emt 0:00:48]} b5 {[%emt 0:01:49]} 13. a3 {[%emt 0:05:50]} Rfe8 {[%emt 0:19:45]} 14. Nxc6 {[%emt 0:17:54]} Bxc6 {[%emt 0:00:27]} 15. Bd4 {[%emt 0:00:54]} Qb7 {[%emt 0:11:17]} 16. Bf3 {[%emt 0:31:56]} g6 {[%emt 0:17:01]} 17. Rae1 {[%emt 0:05:25]} Nd7 {[%emt 0:10:26]} 18. f5 {[%emt 0:06:54]} Bf8 {[%emt 0:13:04]} 19. fxg6 {[%emt 0:02:26]} hxg6 {[%emt 0:00:08]} 20. Bh5 {[%emt 0:02:52]} Ne5 {[%emt 0:02:08]} 21. Bxe5 {[%emt 0:11:32]} dxe5 {[%emt 0:00:09]} 22. Bf3 {[%emt 0:01:12]} Qc7 {[%emt 0:06:14]} 23. h4 {[%emt 0:00:40]} Kg7 {[%emt 0:00:34]} 24. Nd1 {[%emt 0:00:25]} Be7 {[%emt 0:00:39]} 25. h5 {[%emt 0:00:17]} Rh8 {[%emt 0:01:23]} 26. Nf2 {[%emt 0:00:11]} Rxh5+ {[%emt 0:05:07]} 27. Bxh5 {[%emt 0:00:12]} Rh8 {[%emt 0:00:01]} 28. Nh3 {[%emt 0:00:46]} Rxh5 {[%emt 0:00:13]} 29. Re2 {[%emt 0:01:21]} Qb7 {[%emt 0:01:11]} 30. Qd3 {[%emt 0:00:43]} Rh4 {[%emt 0:01:04]} 31. Rfe1 {[%emt 0:00:41]} g5 {[%emt 0:01:10]} 32. Kg1 {[%emt 0:00:15]} Bc5+ {[%emt 0:00:44]} 33. Nf2 {[%emt 0:00:55]} Qe7 {[%emt 0:01:52]} 34. b4 {[%emt 0:00:11]} Bd4 {[%emt 0:00:08]} 35. c3 {[%emt 0:00:09]} Ba7 {[%emt 0:01:13]} 36. Rd1 {[%emt 0:00:53]} Qf6 {[%emt 0:00:34]} 37. Rf1 {[%emt 0:00:49]} Qh6 {[%emt 0:00:37]} 38. Re3 {[%emt 0:00:15]} Bxe3 {[%emt 0:01:30]} 39. Qxe3 {[%emt 0:00:01]} Qg6 {[%emt 0:00:25]} 40. Qc5 {[%emt 0:00:14]} Bb7 {[%emt 0:01:39]} 41. Qxe5+ {[%emt 0:00:02]} Kh7 {[%emt 0:00:43]} 42. Qc7 {[%emt 0:00:42]} Ba8 {[%emt 0:00:19]} 43. Nh3 {[%emt 0:00:19]} Kg7 {[%emt 0:00:20]} 1/2-1/2

[Event "Al Mahmud Memorial Probashi Chess-ch 202"]
[Site "Dhaka"]
[Date "2022.02.06"]
[Round "2.9"]
[White "Sadnan Hasan, Dihan"]
[Black "Hasan, Sk. Rashedul"]
[Result "1-0"]
[ECO "C41"]
[WhiteElo "2152"]
[BlackElo "1842"]
[Annotator "ChessBase"]
[PlyCount "101"]
[EventDate "2022.02.06"]
[EventCountry "BAN"]
[SourceTitle "playchess.com"]
[Source "ChessBase"]
[SourceQuality "1"]
[TimeControl "5400+30"]

1. e4 {[%emt 0:00:05]} d6 {[%emt 0:19:47]} 2. d4 {[%emt 0:00:10]} Nf6 {[%emt 0:00:46]} 3. Nc3 {[%emt 0:00:04]} e5 {[%emt 0:00:54]} 4. Nf3 {[%emt 0:00:12]} Nbd7 {[%emt 0:00:20]} 5. dxe5 {[%emt 0:07:44]} dxe5 {[%emt 0:00:09]} 6. Bg5 {[%emt 0:01:09]} Be7 {[%emt 0:00:39]} 7. Bc4 {[%emt 0:01:15]} c6 {[%emt 0:01:29]} 8. Qe2 {[%emt 0:00:14]} Qc7 {[%emt 0:01:54]} 9. a4 {[%emt 0:09:30]} O-O {[%emt 0:00:41]} 10. Bh4 {[%emt 0:01:13]} Nc5 {[%emt 0:11:20]} 11. Bg3 {[%emt 0:02:41]} Bg4 {[%emt 0:02:24]} 12. h3 {[%emt 0:00:22]} Bh5 {[%emt 0:00:13]} 13. Bh2 {[%emt 0:05:15]} Bd6 {[%emt 0:03:48]} 14. Rb1 {[%emt 0:09:00]} Bg6 {[%emt 0:09:18]} 15. Nd2 {[%emt 0:01:11]} Rfe8 {[%emt 0:06:15]} 16. g4 {[%emt 0:00:31]} Ne6 {[%emt 0:04:17]} 17. Bxe6 {[%emt 0:00:02]} Rxe6 {[%emt 0:00:03]} 18. f3 {[%emt 0:07:17]} Bb4 {[%emt 0:05:58]} 19. Nd1 {[%emt 0:01:35]} Rd8 {[%emt 0:02:06]} 20. c3 {[%emt 0:00:06]} Be7 {[%emt 0:01:45]} 21. Bg3 {[%emt 0:02:19]} Qa5 {[%emt 0:00:57]} 22. Ra1 {[%emt 0:05:11]} Nd7 {[%emt 0:09:59]} 23. Nc4 {[%emt 0:03:39]} Qc7 {[%emt 0:00:12]} 24. Nf2 {[%emt 0:03:23]} b5 {[%emt 0:03:56]} 25. axb5 {[%emt 0:00:08]} cxb5 {[%emt 0:00:03]} 26. Ne3 {[%emt 0:00:01]} Bg5 {[%emt 0:03:15]} 27. Nd5 {[%emt 0:00:09]} Qb8 {[%emt 0:00:17]} 28. h4 {[%emt 0:00:05]} Bf4 {[%emt 0:01:14]} 29. Bxf4 {[%emt 0:00:10]} exf4 {[%emt 0:00:03]} 30. h5 {[%emt 0:00:15]} Nc5 {[%emt 0:01:36]} 31. Rd1 {[%emt 0:12:01]} Bxe4 {[%emt 0:01:55]} 32. fxe4 {[%emt 0:00:03]} Rde8 {[%emt 0:02:30]} 33. O-O {[%emt 0:02:26]} Nxe4 {[%emt 0:00:28]} 34. Nxe4 {[%emt 0:00:02]} Rxe4 {[%emt 0:00:02]} 35. Qf3 {[%emt 0:01:35]} a5 {[%emt 0:01:06]} 36. h6 {[%emt 0:00:14]} Qa7+ {[%emt 0:00:27]} 37. Rd4 {[%emt 0:01:32]} Rxd4 {[%emt 0:00:22]} 38. cxd4 {[%emt 0:00:06]} Qxd4+ {[%emt 0:00:13]} 39. Rf2 {[%emt 0:00:42]} g5 {[%emt 0:02:56]} 40. Qc3 {[%emt 0:01:36]} Qxc3 {[%emt 0:00:44]} 41. bxc3 {[%emt 0:00:05]} Re6 {[%emt 0:00:12]} 42. Nc7 {[%emt 0:05:48]} Rxh6 {[%emt 0:00:08]} 43. Nxb5 {[%emt 0:00:02]} Kf8 {[%emt 0:01:25]} 44. Nd4 {[%emt 0:02:34]} Rh3 {[%emt 0:00:17]} 45. Rc2 {[%emt 0:03:23]} Rg3+ {[%emt 0:01:45]} 46. Kf2 {[%emt 0:00:24]} Rxg4 {[%emt 0:00:09]} 47. c4 {[%emt 0:00:17]} Rg3 {[%emt 0:00:32]} 48. c5 {[%emt 0:00:33]} Rd3 {[%emt 0:00:05]} 49. c6 {[%emt 0:00:34]} g4 {[%emt 0:02:07]} 50. c7 {[%emt 0:00:02]} g3+ {[%emt 0:00:03]} 51. Kg2 {[%emt 0:00:07]} 1-0

[Event "Al Mahmud Memorial Probashi Chess-ch 202"]
[Site "Dhaka"]
[Date "2022.02.06"]
[Round "2.10"]
[White "Labib, Ibrahim Hasan"]
[Black "Nayem, Haque"]
[Result "0-1"]
[ECO "C56"]
[WhiteElo "2409"]
[BlackElo "2150"]
[Annotator "ChessBase"]
[PlyCount "89"]
[EventDate "2022.02.06"]
[EventCountry "BAN"]
[SourceTitle "playchess.com"]
[Source "ChessBase"]
[SourceQuality "1"]
[TimeControl "5400+30"]

1. e4 {[%emt 0:00:11]} e5 {[%emt 0:00:10]} 2. Bc4 {[%emt 0:01:32]} Nf6 {[%emt 0:00:12]} 3. Nf3 {[%emt 0:03:50]} Nc6 {[%emt 0:00:01]} 4. d4 {[%emt 0:01:20]} exd4 {[%emt 0:00:12]} 5. O-O {[%emt 0:01:12]} Nxe4 {[%emt 0:04:18]} 6. Re1 {[%emt 0:05:03]} d5 {[%emt 0:00:22]} 7. Bxd5 {[%emt 0:00:33]} Qxd5 {[%emt 0:00:02]} 8. Nc3 {[%emt 0:00:20]} Qd8 {[%emt 0:00:01]} 9. Nxe4 {[%emt 0:00:38]} Be7 {[%emt 0:00:04]} 10. Bg5 {[%emt 0:09:27]} O-O {[%emt 0:11:29]} 11. Bxe7 {[%emt 0:01:30]} Nxe7 {[%emt 0:00:03]} 12. Nxd4 {[%emt 0:02:44]} Ng6 {[%emt 0:03:29]} 13. c3 {[%emt 0:03:42]} Qh4 {[%emt 0:02:56]} 14. Re3 {[%emt 0:05:18]} Bg4 {[%emt 0:05:36]} 15. Qb3 {[%emt 0:05:03]} b6 {[%emt 0:05:31]} 16. Ng3 {[%emt 0:01:50]} c5 {[%emt 0:02:01]} 17. Ndf5 {[%emt 0:01:02]} Qf6 {[%emt 0:05:18]} 18. Qc2 {[%emt 0:06:50]} Rad8 {[%emt 0:04:15]} 19. Rae1 {[%emt 0:00:36]} Rd5 {[%emt 0:17:49]} 20. Ne7+ {[%emt 0:02:09]} Nxe7 {[%emt 0:00:04]} 21. Rxe7 {[%emt 0:00:25]} Rd1 {[%emt 0:00:25]} 22. Qe4 {[%emt 0:03:37]} Rxe1+ {[%emt 0:08:56]} 23. Qxe1 {[%emt 0:00:14]} Be6 {[%emt 0:00:02]} 24. Rxa7 {[%emt 0:02:02]} Rd8 {[%emt 0:00:41]} 25. h3 {[%emt 0:02:55]} g6 {[%emt 0:02:18]} 26. Qe3 {[%emt 0:01:49]} Bd5 {[%emt 0:13:50]} 27. b3 {[%emt 0:01:53]} Bc6 {[%emt 0:01:13]} 28. c4 {[%emt 0:11:40]} h5 {[%emt 0:01:52]} 29. Qe7 {[%emt 0:03:54]} Rd1+ {[%emt 0:02:32]} 30. Nf1 {[%emt 0:00:43]} Qf4 {[%emt 0:02:16]} 31. Qe3 {[%emt 0:04:04]} Qe4 {[%emt 0:01:28]} 32. Qxe4 {[%emt 0:02:02]} Bxe4 {[%emt 0:00:05]} 33. Ra6 {[%emt 0:01:19]} Bd3 {[%emt 0:00:02]} 34. Rxb6 {[%emt 0:02:29]} Rxf1+ {[%emt 0:00:08]} 35. Kh2 {[%emt 0:00:03]} Rxf2 {[%emt 0:00:28]} 36. Rb8+ {[%emt 0:00:34]} Kg7 {[%emt 0:00:04]} 37. a4 {[%emt 0:00:39]} h4 {[%emt 0:02:12]} 38. Re8 {[%emt 0:01:55]} Rb2 {[%emt 0:00:30]} 39. a5 {[%emt 0:00:24]} Ra2 {[%emt 0:00:27]} 40. Re5 {[%emt 0:02:26]} Rxa5 {[%emt 0:00:27]} 41. b4 {[%emt 0:00:04]} Ra4 {[%emt 0:00:13]} 42. bxc5 {[%emt 0:01:08]} Rxc4 {[%emt 0:00:17]} 43. Rd5 {[%emt 0:00:15]} Be4 {[%emt 0:00:12]} 44. Re5 {[%emt 0:00:16]} Bc6 {[%emt 0:00:03]} 45. Rd5 {[%emt 0:11:20]} 0-1